bitfinex-derivatives/quotes_SOLF0:USTF0_20250830
["timestamp","ask_amount","ask_price","bid_price","bid_amount"]
[1756578297273,9.39274619,200.69,200.63,7.45]
[1756578297475,9.39274619,200.69,200.63,11.64204356]
[1756578298171,9.39274619,200.67,200.64,7.45]
[1756578298370,7.39,200.66,200.64,7.45]
[1756578302173,2.00274619,200.67,200.62,7.45]
[1756578302480,9.39274619,200.69,200.64,7.45]
[1756578302880,7.39,200.68,200.64,7.45]
[1756578303279,9.39274619,200.67,200.64,7.45]
[1756578304678,9.39274619,200.67,200.62,7.45]
[1756578304882,9.39274619,200.67,200.61,6.19888871]
[1756578305386,7.39,200.71,200.62,7.45]
[1756578305684,2.00274619,200.67,200.61,6.19888871]
[1756578305985,2.00274619,200.67,200.62,7.45]
[1756578306180,2.00274619,200.67,200.61,6.19888871]
[1756578306385,2.00274619,200.67,200.62,7.45]
[1756578306585,2.00274619,200.67,200.61,6.19888871]
[1756578306982,2.00274619,200.67,200.62,7.45]
[1756578307182,2.00274619,200.67,200.61,2.00274619]
[1756578307591,2.00274619,200.67,200.62,7.84]
[1756578307884,2.00274619,200.67,200.61,2.00274619]
[1756578308081,2.00274619,200.67,200.62,7.84]
[1756578308278,2.00274619,200.67,200.61,9.84274619]
[1756578308691,2.00274619,200.67,200.61,2.00274619]
[1756578308880,2.00274619,200.67,200.62,7.84]
[1756578309889,2.00274619,200.67,200.61,2.00274619]
[1756578310091,2.00274619,200.67,200.62,7.84]
[1756578311382,9.92274619,200.65,200.62,7.84]
[1756578311582,9.92274619,200.65,200.59,6.19888871]
[1756578312086,9.92274619,200.65,200.59,4.19614252]
[1756578312487,9.92274619,200.65,200.59,7.84]
[1756578314585,9.92274619,200.65,200.59,2.00274619]
[1756578314792,9.92274619,200.65,200.6,7.84]
[1756578315093,7.92,200.65,200.6,7.84]
[1756578315292,7.92,200.65,200.61,7.84]
[1756578315492,7.92,200.65,200.6,2.00274619]
[1756578315694,7.92,200.65,200.61,7.84]
[1756578315897,7.92,200.65,200.6,2.00274619]
[1756578316082,7.92,200.65,200.61,7.84]
[1756578316391,7.92,200.65,200.6,2.00274619]
[1756578317185,7.92,200.65,200.61,7.84]
[1756578317786,7.92,200.65,200.6,2.00274619]
[1756578317982,2.00274619,200.67,200.61,7.84]
[1756578318186,2.00274619,200.67,200.6,2.00274619]
[1756578318402,7.92,200.66,200.61,7.84]
[1756578318691,2.00274619,200.67,200.6,2.00274619]
[1756578319195,7.92,200.66,200.61,7.84]
[1756578319694,7.92,200.65,200.62,7.84]
[1756578319888,9.92274619,200.68,200.61,7.84]
[1756578320888,7.92,200.68,200.61,7.84]
[1756578321094,9.92274619,200.72,200.65,7.84]
[1756578321990,7.92,200.72,200.67,7.84]
[1756578322597,7.92,200.71,200.68,7.84]
[1756578322798,7.92,200.71,200.66,2.00274619]
[1756578323200,7.92,200.71,200.67,7.84]
[1756578323395,7.92,200.71,200.66,2.00274619]
[1756578323993,7.92,200.71,200.67,7.84]
[1756578324194,7.92,200.71,200.66,2.00274619]
[1756578324497,7.92,200.74,200.68,2.00274619]
[1756578324695,9.92274619,200.77,200.71,7.84]
[1756578324894,2.00274619,200.78,200.72,2.00274619]
[1756578325301,2.00274619,200.76,200.69,7.84]
[1756578325503,7.92,200.75,200.69,9.84274619]
[1756578325690,7.92,200.75,200.67,4.19614252]
[1756578325691,2.00274619,200.74,200.66,12.03614252]
[1756578325895,2.00274619,200.74,200.67,2.00274619]
[1756578325896,7.92,200.73,200.67,2.00274619]
[1756578326998,2.00274619,200.72,200.67,2.00274619]
[1756578328101,7.92,200.71,200.65,7.84]
[1756578329403,7.92,200.71,200.64,2.00274619]
[1756578329600,7.92,200.69,200.64,2.00274619]
[1756578329805,2.00274619,200.7,200.64,2.00274619]
[1756578330405,7.92,200.69,200.64,2.00274619]
[1756578330712,2.00274619,200.7,200.64,2.00274619]
[1756578331209,7.92,200.67,200.62,14.03888871]
[1756578331401,2.00274619,200.68,200.62,9.84274619]
[1756578331803,16.62,200.74,200.62,9.84274619]
[1756578332005,7.92,200.66,200.62,9.84274619]
[1756578332395,2.00274619,200.67,200.62,9.84274619]
[1756578332603,7.92,200.66,200.62,9.84274619]
[1756578332794,7.92,200.66,200.63,7.84]
[1756578332995,2.00274619,200.68,200.62,2.00274619]
[1756578333203,7.92,200.65,200.61,7.84]
[1756578333404,2.00274619,200.66,200.61,7.84]
[1756578333803,7.92,200.65,200.61,7.84]
[1756578334104,2.00274619,200.66,200.61,7.84]
[1756578334304,7.92,200.65,200.61,7.84]
[1756578334504,2.00274619,200.66,200.61,7.84]
[1756578334713,7.92,200.61,200.56,14.03888871]
[1756578334913,7.92,200.61,200.57,7.84]
[1756578335207,2.00274619,200.62,200.57,7.84]
[1756578335696,7.92,200.61,200.57,7.84]
[1756578335897,7.92,200.61,200.56,6.19888871]
[1756578336304,7.92,200.67,200.61,7.84]
[1756578336502,7.92,200.67,200.63,7.84]
[1756578336902,2.00274619,200.69,200.63,7.84]
[1756578337103,2.00274619,200.67,200.6,6.19888871]
[1756578337307,7.62,200.66,200.6,2.00274619]
[1756578338220,2.00274619,200.65,200.59,9.84274619]
[1756578338604,7.62,200.64,200.58,4.19614252]
[1756578338805,7.62,200.64,200.58,2.00274619]
[1756578339404,7.62,200.64,200.57,4.19614252]
[1756578340900,3.13107989,200.71,200.59,7.61]
[1756578341100,7.62,200.7,200.6,7.61]
[1756578341506,7.62,200.7,200.62,7.61]
[1756578342210,7.62,200.67,200.59,11.80614252]
[1756578342407,7.62,200.67,200.59,7.61]
[1756578343807,7.62,200.67,200.57,4.19614252]
[1756578344005,7.62,200.64,200.55,11.80614252]
[1756578345313,7.62,200.64,200.55,7.61]
[1756578348419,3.13107989,200.62,200.55,7.61]
[1756578348620,7.62,200.61,200.55,7.61]
[1756578365535,9.62443599,200.61,200.55,9.61443599]
[1756578366534,9.62443599,200.61,200.55,7.61]
[1756578366940,2.00443599,200.57,200.51,7.61]
[1756578367242,2.00443599,200.57,200.51,9.61443599]
[1756578367442,2.00443599,200.57,200.51,7.61]
[1756578367941,10.07443599,200.55,200.51,7.61]
[1756578368630,2.00443599,200.55,200.51,7.61]
[1756578368836,8.07,200.54,200.51,7.61]
[1756578369240,8.07,200.54,200.49,2.00443599]
[1756578369440,8.07,200.54,200.48,7.53]
[1756578371043,8.07,200.58,200.49,3.13370314]
[1756578371240,8.07,200.61,200.53,7.53]
[1756578375246,8.07,200.61,200.53,4.18917147]
[1756578375446,8.07,200.61,200.54,7.53]
[1756578376745,8.07,200.69,200.56,7.53]
[1756578376946,8.07,200.69,200.59,7.53]
[1756578378147,8.07,200.69,200.62,7.53]
[1756578381747,8.07,200.69,200.6,7.32287461]
[1756578381748,8.07,200.69,200.63,3.13370314]
[1756578382349,8.07,200.69,200.64,7.53]
[1756578382549,8.07,200.69,200.63,3.13370314]
[1756578383257,8.07,200.69,200.64,7.53]
[1756578383450,8.07,200.69,200.63,3.13370314]
[1756578383950,8.07,200.73,200.64,7.53]
[1756578385750,8.07,200.73,200.66,3.13370314]
[1756578386050,8.07,200.73,200.67,7.53]
[1756578390761,8.07,200.76,200.7,7.53]
[1756578391854,8.07,200.76,200.72,3.13370314]
[1756578392059,8.07,200.76,200.73,7.53]
[1756578392355,8.07,200.8,200.73,7.53]
[1756578393160,8.07,200.8,200.76,7.53]
[1756578393360,8.07,200.8,200.75,3.13370314]
[1756578393556,8.07,200.8,200.76,7.53]
[1756578393854,91.91,200.85,200.76,7.53]
[1756578394055,8.07,200.83,200.7,7.53]
[1756578394257,8.07,200.83,200.72,7.53]
[1756578394959,8.07,200.8,200.71,3.13370314]
[1756578397563,8.07,200.8,200.72,7.56]
[1756578416676,8.07,200.8,200.74,3.13370314]
[1756578416877,7.33,200.85,200.77,3.13370314]
[1756578417074,7.33,200.85,200.77,10.69370314]
[1756578420783,7.33,200.88,200.8,3.13370314]
[1756578421076,7.33,200.88,200.81,7.56]
[1756578422576,4.00031253,200.93,200.84,7.56]
[1756578422577,7.33,200.92,200.84,7.56]
[1756578423182,7.33,200.92,200.86,3.13370314]
[1756578425679,53.59,200.96,200.86,3.13370314]
[1756578426080,87.45,200.96,200.86,3.13370314]
[1756578426883,7.33,200.96,200.87,7.56]
[1756578427085,7.33,200.96,200.9,7.56]
[1756578428785,7.33,200.96,200.81,4.15113725]
[1756578428786,7.33,200.96,200.88,3.13370314]
[1756578431086,7.33,200.96,200.87,8.03]
[1756578431482,3.13370314,200.94,200.83,11.16370314]
[1756578431687,8.09,200.93,200.83,11.16370314]
[1756578431989,3.13370314,200.94,200.83,11.16370314]
[1756578432783,3.13370314,200.91,200.8,3.13370314]
[1756578433084,8.09,200.9,200.8,11.16370314]
[1756578433486,3.13370314,200.91,200.8,11.16370314]
[1756578434288,8.09,200.9,200.8,11.16370314]
[1756578434486,8.09,200.9,200.81,8.03]
[1756578441095,8.09,200.9,200.83,3.13370314]
[1756578441297,8.09,200.9,200.84,8.03]
[1756578445305,8.09,200.93,200.84,8.03]
[1756578447696,8.09,200.93,200.86,8.03]
[1756578450906,8.09,200.96,200.89,8.03]
[1756578452107,8.09,200.98,200.89,8.03]
[1756578452310,8.09,200.98,200.92,8.03]
[1756578454607,8.09,200.98,200.85,4.15113725]
[1756578454809,8.09,200.98,200.89,8.03]
[1756578463915,7.45,200.96,200.86,7.37]
[1756578464123,3.13370314,200.94,200.86,7.37]
[1756578464318,7.45,200.93,200.86,7.37]
[1756578464512,7.45,200.93,200.81,7.28484039]
[1756578464712,7.45,200.93,200.82,7.37]
[1756578465726,3.13370314,200.91,200.82,7.37]
[1756578465924,7.45,200.9,200.82,7.37]
[1756578472226,3.13370314,200.89,200.82,7.37]
[1756578472426,7.45,200.88,200.82,7.37]
[1756578477423,7.45,200.96,200.82,7.37]
[1756578477629,8.31146785,200.99,200.82,7.37]
[1756578477630,7.45,200.92,200.82,7.37]
[1756578478525,7.45,200.92,200.83,7.37]
[1756578480732,7.45,200.92,200.81,4.15113725]
[1756578480733,7.45,200.95,200.86,3.13370314]
[1756578481031,7.45,200.95,200.87,7.37]
[1756578484332,30.29,200.98,200.9,7.37]
[1756578485832,30.29,200.98,200.92,10.50370314]
[1756578486339,7.45,200.98,200.92,10.50370314]
[1756578487830,7.45,200.98,200.92,3.13370314]
[1756578488034,7.45,200.98,200.93,8.09]
[1756578488426,7.45,200.98,200.92,3.13370314]
[1756578489935,7.55,201.02,200.93,8.09]
[1756578490332,7.55,201.02,200.95,3.13370314]
[1756578490537,7.55,201.02,200.96,8.09]
[1756578492438,7.55,201.02,200.96,11.22370314]
[1756578494535,7.55,201.02,200.96,3.13370314]
[1756578494735,27.55,201.05,200.97,8.09]
[1756578495737,27.55,201.05,201.0,8.09]
[1756578495940,27.55,201.05,200.99,3.13370314]
[1756578497144,27.55,201.05,201.0,8.09]
[1756578497341,27.55,201.05,200.99,3.13370314]
[1756578497540,20.0,201.05,200.99,3.13370314]
[1756578497944,20.0,201.05,201.0,8.09]
[1756578498146,5.0,201.05,200.99,3.13370314]
[1756578498447,5.0,201.05,201.0,8.09]
[1756578498645,5.0,201.05,200.99,3.13370314]
[1756578499551,5.0,201.05,201.0,8.09]
[1756578499747,5.0,201.05,200.99,3.13370314]
[1756578500143,5.0,201.05,201.0,8.09]
[1756578500746,5.0,201.05,200.99,3.13370314]
[1756578501450,5.0,201.05,201.0,8.09]
[1756578501641,5.0,201.05,200.99,3.13370314]
[1756578502040,5.0,201.05,201.0,8.09]
[1756578502345,5.0,201.05,200.99,3.13370314]
[1756578502850,5.0,201.05,201.0,8.09]
[1756578503150,5.0,201.05,200.99,3.13370314]
[1756578503651,5.0,201.05,201.0,8.09]
[1756578503948,5.0,201.05,200.99,3.13370314]
[1756578504148,5.0,201.05,201.0,8.09]
[1756578504339,5.0,201.09,200.99,3.13370314]
[1756578504540,7.55,201.08,201.0,8.09]
[1756578509252,7.55,201.08,201.03,8.09]
[1756578509448,5.0,201.09,201.05,3.13370314]
[1756578509647,5.0,201.09,201.06,8.09]
[1756578509843,5.0,201.09,201.08,3.13370314]
[1756578510047,5.0,201.09,201.08,11.22370314]
[1756578510749,5.0,201.09,201.06,11.22370314]
[1756578510947,5.0,201.09,201.07,8.09]
[1756578514254,5.0,201.09,201.06,3.13370314]
[1756578514455,5.0,201.09,201.07,8.09]
[1756578514656,5.0,201.09,201.06,3.13370314]
[1756578514950,5.0,201.09,201.07,8.09]
[1756578515557,5.0,201.09,201.06,3.13370314]
[1756578515955,5.0,201.09,201.07,8.09]
[1756578516655,7.55,201.08,201.06,3.13370314]
[1756578516959,12.55,201.09,201.03,11.22370314]
[1756578517858,12.55,201.09,201.06,10.61370314]
[1756578519059,8.06,201.08,201.06,3.13370314]
[1756578522557,5.0,201.09,201.03,3.13370314]
[1756578522760,13.06,201.09,201.03,10.61370314]
[1756578524155,8.06,201.08,201.03,3.13370314]
[1756578524358,5.0,201.09,201.03,3.13370314]
[1756578525854,8.06,201.08,201.03,3.13370314]
[1756578526061,13.06,201.09,201.03,3.13370314]
[1756578528861,5.0,201.09,201.06,3.13370314]
[1756578529264,5.0,201.09,201.06,10.61370314]
[1756578529565,13.06,201.09,201.07,7.48]
[1756578529862,8.06,201.08,201.06,3.13370314]
[1756578530064,5.0,201.09,201.07,7.48]
[1756578530452,13.06,201.09,201.07,7.48]
[1756578531662,5.0,201.09,201.07,7.48]
[1756578534667,5.0,201.09,201.06,3.13370314]
[1756578534866,5.0,201.09,201.07,7.48]
[1756578535459,5.0,201.09,201.06,3.13370314]
[1756578535660,5.0,201.09,201.07,7.48]
[1756578538561,5.0,201.09,201.06,3.13370314]
[1756578538965,5.0,201.09,201.07,7.48]
[1756578539667,5.0,201.09,201.06,3.13370314]
[1756578539867,5.0,201.09,201.07,7.48]
[1756578540263,8.06,201.08,201.06,3.13370314]
[1756578540767,5.0,201.09,201.06,10.61370314]
[1756578541066,13.06,201.09,201.06,10.61370314]
[1756578542469,13.06,201.09,201.07,7.48]
[1756578542768,5.0,201.09,201.06,3.13370314]
[1756578542962,5.0,201.09,201.07,7.48]
[1756578543568,5.0,201.09,201.06,3.13370314]
[1756578543769,5.0,201.09,201.06,7.28270717]
[1756578544170,8.06,201.08,201.06,10.61370314]
[1756578544366,8.06,201.08,201.06,3.13370314]
[1756578544665,5.0,201.09,201.06,3.13370314]
[1756578544870,8.06,201.08,201.06,3.13370314]
[1756578545167,5.0,201.09,201.06,3.13370314]
[1756578545567,8.06,201.08,201.06,3.13370314]
[1756578545765,8.06,201.08,201.04,4.14900403]
[1756578546071,8.06,201.08,201.04,11.62900403]
[1756578546465,5.0,201.09,201.04,11.62900403]
[1756578546661,8.06,201.08,201.04,11.62900403]
[1756578547265,5.0,201.09,201.04,11.62900403]
[1756578547470,5.0,201.09,201.04,4.14900403]
[1756578547670,5.0,201.09,201.06,7.41]
[1756578547868,5.0,201.09,201.07,7.41]
[1756578551073,7.82,201.08,201.05,4.14900403]
[1756578551277,7.82,201.08,201.05,7.41]
[1756578552082,7.82,201.08,201.05,11.55900403]
[1756578553373,5.0,201.09,201.05,4.14900403]
[1756578553769,7.82,201.08,201.05,4.14900403]
[1756578554172,7.82,201.08,201.06,4.14900403]
[1756578554877,5.0,201.09,201.06,4.14900403]
[1756578555076,7.82,201.08,201.06,4.14900403]
[1756578555678,5.0,201.09,201.06,4.14900403]
[1756578556378,7.82,201.08,201.06,4.14900403]
[1756578556677,5.0,201.09,201.06,4.14900403]
[1756578556879,7.82,201.08,201.06,4.14900403]
[1756578557476,5.0,201.09,201.06,4.14900403]
[1756578557672,7.82,201.08,201.06,4.14900403]
[1756578558079,5.0,201.09,201.06,4.14900403]
[1756578558480,5.0,201.09,201.05,4.14900403]
[1756578558871,7.82,201.08,201.05,4.14900403]
[1756578559584,5.0,201.09,201.05,4.14900403]
[1756578559778,5.0,201.09,201.06,4.14900403]
[1756578560881,7.82,201.08,201.06,4.14900403]
[1756578561079,5.0,201.09,201.05,4.14900403]
[1756578561976,7.82,201.08,201.05,4.14900403]
[1756578562176,5.0,201.09,201.05,4.14900403]
[1756578562785,7.82,201.08,201.05,4.14900403]
[1756578563181,5.0,201.09,201.05,4.14900403]
[1756578563583,7.82,201.08,201.05,4.14900403]
[1756578564179,7.82,201.08,201.06,7.41]
[1756578564379,5.0,201.09,201.06,7.41]
[1756578564579,12.82,201.09,201.06,11.55900403]
[1756578565385,7.82,201.08,201.06,11.55900403]
[1756578566785,12.82,201.09,201.07,7.41]
[1756578567786,5.0,201.09,201.07,7.41]
[1756578568489,12.82,201.09,201.07,7.41]
[1756578569792,5.0,201.09,201.08,11.55900403]
[1756578570092,5.0,201.09,201.08,7.41]
[1756578570293,5.0,201.09,201.08,11.57499468]
[1756578571089,5.0,201.09,201.08,7.41]
[1756578571292,5.0,201.09,201.08,11.57495916]
[1756578572091,5.0,201.09,201.08,7.41]
[1756578572294,5.0,201.09,201.08,11.57496201]
[1756578573094,5.0,201.09,201.08,7.41]
[1756578574300,5.0,201.09,201.08,11.57499445]
[1756578575295,5.0,201.09,201.08,13.56835124]
[1756578580306,5.0,201.09,201.08,9.40335679]
[1756578580898,5.0,201.09,201.08,14.93820646]
[1756578582303,5.0,201.09,201.08,9.40335679]
[1756578582609,5.0,201.09,201.08,14.93820646]
[1756578583102,5.0,201.09,201.08,9.40335679]
[1756578583498,5.0,201.09,201.08,14.93820646]
[1756578587009,5.0,201.09,201.08,15.56820646]
[1756578588112,5.0,201.09,201.08,10.03335679]
[1756578589012,5.0,201.09,201.08,8.04]
[1756578589211,5.0,201.09,201.08,10.03335679]
[1756578591508,7.44,201.16,201.08,10.03335679]
[1756578591710,7.44,201.19,201.14,1.99335679]
[1756578591912,1.99335679,201.18,201.12,1.99335679]
[1756578592105,7.44,201.17,201.12,1.99335679]
[1756578594813,7.44,201.17,201.1,4.15597938]
[1756578595014,7.44,201.17,201.12,1.99335679]
[1756578601323,1.99335679,201.2,201.14,1.99335679]
[1756578601613,7.44,201.22,201.16,1.99335679]
[1756578601817,7.44,201.24,201.18,1.99335679]
[1756578602823,1.99335679,201.21,201.13,4.15597938]
[1756578603019,7.44,201.16,201.1,4.15597938]
[1756578603319,7.44,201.16,201.09,1.99335679]
[1756578604013,7.44,201.16,201.11,1.99335679]
[1756578604227,1.99335679,201.17,201.11,1.99335679]
[1756578604411,7.44,201.16,201.11,1.99335679]
[1756578605319,3.1146178,201.2,201.09,12.19597938]
[1756578605714,7.44,201.19,201.09,12.19597938]
[1756578605920,7.44,201.19,201.08,7.27059718]
[1756578608618,3.1146178,201.2,201.08,15.08059718]
[1756578608818,7.41,201.19,201.08,15.08059718]
[1756578609116,3.1146178,201.2,201.08,15.08059718]
[1756578609718,7.41,201.19,201.08,15.08059718]
[1756578609914,7.41,201.19,201.08,7.27059718]
[1756578610114,7.41,201.19,201.09,7.81]
[1756578611318,3.1146178,201.2,201.09,11.96597938]
[1756578612021,7.41,201.19,201.09,11.96597938]
[1756578612317,3.1146178,201.2,201.09,11.96597938]
[1756578612723,7.41,201.19,201.09,11.96597938]
[1756578613126,3.1146178,201.2,201.09,11.96597938]
[1756578613423,7.41,201.19,201.09,11.96597938]
[1756578613825,3.1146178,201.2,201.09,11.96597938]
[1756578614023,7.41,201.19,201.1,7.81]
[1756578616125,7.41,201.19,201.11,3.1146178]
[1756578616326,7.41,201.19,201.13,7.81]
[1756578616528,7.41,201.19,201.13,11.96597938]
[1756578618330,7.41,201.19,201.13,7.81]
[1756578620324,7.41,201.25,201.15,7.81]
[1756578620530,7.41,201.25,201.17,3.1146178]
[1756578620730,7.41,201.25,201.18,7.81]
[1756578623930,334.18,201.27,201.21,7.81]
[1756578624226,7.41,201.28,201.21,7.81]
[1756578627033,10.5246178,201.28,201.16,7.81]
[1756578628635,3.1146178,201.24,201.16,7.81]
[1756578628837,7.41,201.23,201.16,7.81]
[1756578635434,7.41,201.21,201.12,7.81]
[1756578635834,7.41,201.21,201.1,7.27059718]
[1756578636033,7.41,201.21,201.1,3.1146178]
[1756578636336,3.1146178,201.19,201.09,7.81]
[1756578636639,7.41,201.18,201.09,7.81]
[1756578641740,3.1146178,201.16,201.07,4.15597938]
[1756578641941,3.1146178,201.16,201.07,7.9]
[1756578641942,7.43,201.15,201.07,7.9]
[1756578642939,7.43,201.18,201.09,7.9]
[1756578643237,7.43,201.21,201.12,7.9]
[1756578646445,7.43,201.21,201.14,3.1146178]
[1756578646645,7.43,201.21,201.15,7.9]
[1756578646937,3.1146178,201.25,201.15,7.9]
[1756578647144,7.43,201.24,201.15,7.9]
[1756578647845,7.43,201.24,201.17,3.1146178]
[1756578648042,7.43,201.24,201.18,7.9]
[1756578649248,3.1146178,201.28,201.13,12.05597938]
[1756578649543,7.43,201.22,201.13,7.9]
[1756578660361,7.43,201.22,201.13,11.0146178]
[1756578661259,7.43,201.22,201.13,15.17059718]
[1756578662055,7.43,201.22,201.13,7.9]
[1756578664553,7.43,201.22,201.13,3.1146178]
[1756578664757,7.43,201.22,201.14,7.9]
[1756578665856,7.43,201.25,201.17,7.9]
[1756578666856,3.1146178,201.26,201.14,15.17059718]
[1756578667058,7.43,201.25,201.14,7.9]
[1756578667257,7.43,201.25,201.12,7.27059718]
[1756578667258,3.1146178,201.23,201.12,7.27059718]
[1756578667455,3.1146178,201.23,201.12,3.1146178]
[1756578667763,7.59,201.22,201.12,3.1146178]
[1756578674481,7.59,201.19,201.11,12.06597938]
[1756578674778,3.1146178,201.17,201.07,12.06597938]
[1756578674981,7.59,201.16,201.05,4.15597938]
[1756578675181,3.1146178,201.14,201.05,4.15597938]
[1756578675380,7.59,201.13,201.04,12.06597938]
[1756578675981,7.59,201.13,201.04,12.05670674]
[1756578676278,7.59,201.13,201.04,7.91]
[1756578677783,3.1146178,201.11,201.04,7.91]
[1756578677981,7.59,201.1,201.04,7.91]
[1756578685485,7.59,201.1,201.0,7.91]
[1756578685680,7.59,201.07,200.97,7.91]
[1756578685982,7.59,201.04,200.97,7.91]
[1756578687687,3.1146178,201.08,200.97,7.91]
[1756578687688,10.7046178,201.08,200.98,7.91]
[1756578688385,10.7046178,201.08,200.99,7.91]
[1756578692992,10.7046178,201.08,200.95,7.91]
[1756578693292,7.59,201.03,200.95,7.91]
[1756578700198,7.49,201.01,200.91,8.01]
[1756578720202,3.12059153,201.0,200.91,8.01]
[1756578720410,7.49,200.99,200.91,8.01]
[1756578720999,7.49,200.99,200.91,11.13059153]
[1756578721308,7.49,200.99,200.92,8.01]
[1756578723200,7.49,201.04,200.94,8.01]
[1756578727311,7.49,201.04,200.96,3.12059153]
[1756578727511,7.49,201.04,200.97,7.84]
[1756578729712,7.49,201.04,200.98,3.12059153]
[1756578729902,7.49,201.04,200.99,7.84]
[1756578730108,7.29,201.08,200.99,7.84]
[1756578732914,7.29,201.08,201.01,3.12059153]
[1756578733212,7.29,201.11,201.04,3.12059153]
[1756578733411,7.29,201.11,201.04,10.96059153]
[1756578737113,334.38,201.13,201.04,10.96059153]
[1756578737313,7.29,201.12,201.04,10.96059153]
[1756578737515,334.38,201.13,201.04,10.96059153]
[1756578737714,7.29,201.12,201.04,10.96059153]
[1756578744523,7.29,201.12,201.01,7.84]
[1756578744722,7.29,201.12,201.05,7.84]
[1756578746817,10.41059153,201.12,201.01,7.84]
[1756578749831,3.12059153,201.09,201.01,7.84]
[1756578750027,128.77,201.08,201.01,7.84]
[1756578753930,128.77,201.08,200.95,4.11949733]
[1756578754138,7.29,201.04,200.95,7.84]
[1756578754331,121.64,201.03,200.95,7.84]
[1756578754937,7.29,201.02,200.95,7.84]
[1756578755739,10.41059153,201.02,200.92,7.84]
[1756578756734,11.06,201.01,200.92,7.84]
[1756578760445,7.49,201.0,200.92,7.84]
[1756578764143,7.49,200.95,200.88,11.54949733]
[1756578764350,7.49,200.95,200.88,7.43]
[1756578769946,7.49,200.99,200.89,7.43]
[1756578772644,3.12059153,201.0,200.89,7.43]
[1756578772645,3.12059153,200.94,200.89,7.43]
[1756578772851,3.12059153,200.94,200.86,7.43]
[1756578772852,7.49,200.93,200.86,7.43]
[1756578774250,3.12059153,200.91,200.81,7.43]
[1756578774548,7.49,200.9,200.81,7.43]
[1756578774853,7.49,200.87,200.81,7.43]
[1756578779654,7.49,200.84,200.74,7.43]
[1756578780057,7.49,200.84,200.76,7.43]
[1756578780751,7.49,200.88,200.79,7.43]
[1756578787865,7.49,200.88,200.81,3.12059153]
[1756578788064,7.49,200.88,200.82,8.12]
[1756578805173,7.49,200.88,200.78,8.12]
[1756578805378,10.61059153,200.88,200.78,8.12]
[1756578818488,7.49,200.88,200.78,3.12059153]
[1756578818688,8.03,200.93,200.83,7.95]
[1756578821291,8.03,200.93,200.86,4.12802128]
[1756578821487,8.03,200.93,200.87,7.95]
[1756578825599,8.03,200.93,200.84,7.95]
[1756578847315,1.99831335,200.92,200.85,1.99831335]
[1756578847514,7.51,200.91,200.85,1.99831335]
[1756578849516,7.51,200.91,200.84,7.95]
[1756578849818,7.51,200.91,200.85,1.99831335]
[1756578850711,1.99831335,200.92,200.85,1.99831335]
[1756578850913,7.51,200.91,200.85,9.38831335]
[1756578858021,1.99831335,200.92,200.84,4.12802128]
[1756578858022,7.51,200.94,200.89,1.99831335]
[1756578858219,7.51,200.94,200.9,7.39]
[1756578858721,7.51,200.94,200.86,4.12802128]
[1756578858722,39.3,200.99,200.91,1.99831335]